fUSD/lending_fUSD_20250520
["ID","MTS","AMOUNT","RATE_DAILY","PERIOD"]
[361730908,1747735840270,-253.26506792,0.00011992,2]
[361730909,1747735840284,-998.45865648,0.00011992,2]
[361730910,1747735840294,-1199.20597015,0.00011993,2]
[361730911,1747735840304,-151.0,0.00011993,2]
[361730912,1747735840314,-156.0,0.00011993,2]
[361730913,1747735840325,-155.0,0.00011993,2]
[361730914,1747735840335,-668.65185757,0.00011993,2]
[361730915,1747735840346,-151.0,0.00011993,2]
[361730916,1747735840355,-668.65185757,0.00011993,2]
[361730917,1747735840365,-1229.463,0.00011998,2]
[361730918,1747735840376,-168.235,0.00011998,2]
[361730919,1747735840385,-299.45809342,0.00011999,2]
[361730920,1747735840396,-184.31840982,0.00011999,2]
[361730921,1747735840405,-202.49254075,0.00011999,2]
[361730922,1747735840415,-500.0,0.00011999,2]
[361730923,1747735840424,-500.0,0.00011999,2]
[361730924,1747735840434,-200.36599785,0.00011999,2]
[361730925,1747735840443,-259.99814426,0.00011999,2]
[361730926,1747735840453,-244.35719032,0.00011999,2]
[361730927,1747735840463,-500.0,0.00012,2]
[361730928,1747735840472,-2375165.51903356,0.00012,2]
[361730929,1747735840481,-66099.08899446,0.00012,2]
[361730930,1747735840492,-151.0,0.00012,2]
[361730931,1747735840501,-151.0,0.00012,2]
[361730932,1747735840511,-151.0,0.00012,2]
[361730933,1747735840520,-151.0,0.00012,2]
[361730934,1747735840530,-155.69779526,0.00012,2]
[361730935,1747735840540,-151.0,0.00012,2]
[361730936,1747735840550,-250.0,0.00012077,2]
[361730937,1747735840560,-3812.41,0.00012104,2]
[361730938,1747735840570,-606.08,0.00012142,2]
[361730939,1747735840580,-1000.0,0.000122,2]
[361730940,1747735840589,-1037.34115594,0.00012214,2]
[361730941,1747735840599,-1859.0,0.00012277,2]
[361730942,1747735840608,-1019.0,0.00012338,2]
[361730943,1747735840617,-200.0,0.00012356,2]
[361730944,1747735840629,-369.03684012,0.00012381,2]
[361730945,1747735840639,-200.0,0.00012384,2]
[361730946,1747735840648,-250.0,0.00012384,2]
[361730947,1747735840658,-200.0,0.00012384,2]
[361730948,1747735840668,-250.0,0.00012384,2]
[361730949,1747735840678,-3245.17,0.000125,2]
[361730950,1747735840688,-153.24,0.000125,2]
[361730951,1747735840697,-153.24,0.000125,2]
[361730952,1747735840707,-153.24,0.000125,2]
[361730953,1747735840718,-153.24,0.000125,2]
[361730954,1747735840728,-153.24,0.000125,2]
[361730955,1747735840738,-153.24,0.000125,2]
[361730956,1747735840747,-153.24,0.000125,2]
[361730957,1747735840756,-153.24,0.000125,2]
[361730958,1747735840767,-156.34379325,0.00012541,2]
[361730959,1747735840776,-693.3919763,0.00012541,2]
[361730960,1747735840785,-151.0,0.00012541,2]
[361730961,1747735840796,-20713.0,0.00012571,2]
[361730962,1747735840806,-163.6,0.000126,2]
[361730963,1747735840817,-1000.0,0.00012605,2]
[361730964,1747735840827,-297.74756289,0.000129,2]
[361730965,1747735840839,-420.0,0.00012996,2]
[361730966,1747735840849,-719.04747942,0.00013089,2]
[361730967,1747735840858,-4327.62956734,0.000131,2]
[361730968,1747735840867,-15322.62,0.0001316,2]
[361730969,1747735840878,-23900.0,0.00013165,2]
[361730970,1747735840888,-215.0738,0.00013234,2]
[361730971,1747735840897,-151.0,0.00013362,2]
[361730972,1747735840907,-668.65185757,0.00013362,2]
[361730973,1747735840916,-1199.20597015,0.00013362,2]
[361730974,1747735840926,-611.16,0.00013522,2]
[361730975,1747735840935,-150.0,0.00013601,7]
[361730976,1747735840946,-9060.69,0.00013617,2]
[361730977,1747735840956,-883.59,0.00013634,2]
[361730978,1747735840966,-642.99635445,0.00013637,2]
[361730979,1747735840975,-1668.8916196,0.0001369,2]
[361730980,1747735840985,-1240.6570164,0.0001369,2]
[361730981,1747735840998,-809.24,0.00013699,2]
[361730982,1747735841007,-6280.19,0.00013699,2]
[361730983,1747735841017,-200.0,0.00013699,2]
[361730984,1747735841027,-858.04,0.00013699,2]
[361730985,1747735841036,-500.8753685,0.00013699,2]
[361730986,1747735841046,-508.13190318,0.00013699,2]
[361730987,1747735841056,-500.84651354,0.00013699,2]
[361730988,1747735841066,-501.42007245,0.00013699,2]
[361730989,1747735841077,-501.59182019,0.00013699,2]
[361730990,1747735841088,-500.84911814,0.00013699,2]
[361730991,1747735841097,-500.0,0.00013699,2]
[361730992,1747735841107,-500.0,0.00013699,2]
[361730993,1747735841117,-500.0,0.00013699,2]
[361730994,1747735841127,-500.0,0.00013699,2]
[361730995,1747735841137,-500.0,0.00013699,2]
[361730996,1747735841146,-500.0,0.00013699,2]
[361730997,1747735841156,-500.0,0.00013699,2]
[361730998,1747735841165,-500.0,0.00013699,2]
[361730999,1747735841175,-500.0,0.00013699,2]
[361731000,1747735841184,-500.0,0.00013699,2]
[361731001,1747735841194,-500.0,0.00013699,2]
[361731002,1747735841204,-500.0,0.00013699,2]
[361731003,1747735841214,-500.0,0.00013699,2]
[361731004,1747735841223,-500.0,0.00013699,2]
[361731005,1747735841233,-500.0,0.00013699,2]
[361731006,1747735841243,-500.0,0.00013699,2]
[361731007,1747735841252,-500.0,0.00013699,2]
[361731008,1747735841261,-500.0,0.00013699,2]
[361731009,1747735841271,-500.0,0.00013699,2]
[361731010,1747735841280,-500.0,0.00013699,2]
[361731011,1747735841289,-500.0,0.00013699,2]
[361731012,1747735841299,-500.0,0.00013699,2]
[361731013,1747735841308,-500.0,0.00013699,2]
[361731014,1747735841317,-500.0,0.00013699,2]
[361731015,1747735841327,-500.0,0.00013699,2]
[361731016,1747735841336,-500.0,0.00013699,2]
[361731017,1747735841345,-500.0,0.00013699,2]
[361731018,1747735841354,-500.0,0.00013699,2]
[361731019,1747735841363,-500.0,0.00013699,2]
[361731020,1747735841373,-500.0,0.00013699,2]
[361731021,1747735841383,-500.0,0.00013699,2]
[361731022,1747735841392,-500.0,0.00013699,2]
[361731023,1747735841401,-500.0,0.00013699,2]
[361731024,1747735841411,-500.0,0.00013699,2]
[361731025,1747735841419,-500.0,0.00013699,2]
[361731026,1747735841429,-500.0,0.00013699,2]
[361731027,1747735841438,-500.0,0.00013699,2]
[361731028,1747735841447,-500.0,0.00013699,2]
[361731029,1747735841456,-500.0,0.00013699,2]
[361731030,1747735841466,-500.0,0.00013699,2]
[361731031,1747735841475,-500.0,0.00013699,2]
[361731032,1747735841484,-500.0,0.00013699,2]
[361731033,1747735841493,-500.0,0.00013699,2]
[361731034,1747735841503,-500.0,0.00013699,2]
[361731035,1747735841512,-500.0,0.00013699,2]
[361731036,1747735841522,-500.0,0.00013699,2]
[361731037,1747735841531,-500.0,0.00013699,2]
[361731038,1747735841540,-500.0,0.00013699,2]
[361731039,1747735841550,-500.0,0.00013699,2]
[361731040,1747735841559,-500.0,0.00013699,2]
[361731041,1747735841569,-500.0,0.00013699,2]
[361731042,1747735841578,-500.0,0.00013699,2]
[361731043,1747735841588,-208.68219056,0.00013699,2]
[361731044,1747735841597,-500.0,0.00013699,2]
[361731045,1747735841607,-500.0,0.00013699,2]
[361731046,1747735841617,-500.0,0.00013699,2]
[361731047,1747735841628,-500.0,0.00013699,2]
[361731048,1747735841638,-1284.26182958,0.00013699,2]
[361731049,1747735841648,-1284.26182958,0.00013699,2]
[361731050,1747735841657,-1284.26182958,0.00013699,2]
[361731051,1747735841667,-1284.26182958,0.00013699,2]
[361731052,1747735841676,-1284.26182958,0.00013699,2]
[361731053,1747735841686,-1284.26182958,0.00013699,2]
[361731054,1747735841695,-1284.26182958,0.00013699,2]
[361731055,1747735841705,-1284.26182958,0.00013699,2]
[361731056,1747735841715,-1284.26182958,0.00013699,2]
[361731057,1747735841724,-1284.26182958,0.00013699,2]
[361731058,1747735841734,-1284.26182958,0.00013699,2]
[361731059,1747735841743,-1284.26182958,0.00013699,2]
[361731060,1747735841753,-1284.26182958,0.00013699,2]
[361731061,1747735841763,-1284.26182958,0.00013699,2]
[361731062,1747735841772,-1284.26182958,0.00013699,2]
[361731063,1747735841782,-1284.26182958,0.00013699,2]
[361731064,1747735841791,-1284.26182958,0.00013699,2]
[361731065,1747735841801,-1284.26182958,0.00013699,2]
[361731066,1747735841810,-1284.26182958,0.00013699,2]
[361731067,1747735841820,-1284.26182958,0.00013699,2]
[361731068,1747735841829,-1284.26182958,0.00013699,2]
[361731069,1747735841839,-1284.26182958,0.00013699,2]
[361731070,1747735841848,-1284.26182958,0.00013699,2]
[361731071,1747735841858,-1284.26182958,0.00013699,2]
[361731072,1747735841867,-1284.26182958,0.00013699,2]
[361731073,1747735841878,-1284.26182958,0.00013699,2]
[361731074,1747735841887,-1284.26182958,0.00013699,2]
[361731075,1747735841896,-1284.26182958,0.00013699,2]
[361731076,1747735841906,-1284.26182958,0.00013699,2]
[361731077,1747735841916,-1284.26182958,0.00013699,2]
[361731078,1747735841925,-1284.26182958,0.00013699,2]
[361731079,1747735841935,-1284.26182953,0.00013699,2]
[361731080,1747735841944,-500.0,0.00013699,2]
[361731081,1747735841954,-500.0,0.00013699,2]
[361731082,1747735841963,-496.0741411,0.00013699,2]
[361731083,1747735841972,-500.0,0.00013699,2]
[361731084,1747735841982,-500.0,0.00013699,2]
[361731085,1747735841994,-500.0,0.00013699,2]
[361731086,1747735842003,-500.0,0.00013699,2]
[361731087,1747735842013,-500.0,0.00013699,2]
[361731088,1747735842023,-500.0,0.00013699,2]
[361731089,1747735842034,-500.0,0.00013699,2]
[361731090,1747735842044,-500.0,0.00013699,2]
[361731091,1747735842054,-500.0,0.00013699,2]
[361731092,1747735842065,-500.0,0.00013699,2]
[361731093,1747735842075,-500.0,0.00013699,2]
[361731094,1747735842085,-165.9301483,0.00013699,2]
[361731095,1747735842096,-500.0,0.00013699,2]
[361731096,1747735842105,-500.0,0.00013699,2]
[361731097,1747735842115,-500.0,0.00013699,2]
[361731098,1747735842126,-500.0,0.00013699,2]
[361731099,1747735842136,-500.0,0.00013699,2]
[361731100,1747735842146,-500.0,0.00013699,2]
[361731101,1747735842157,-500.0,0.00013699,2]
[361731102,1747735842167,-500.0,0.00013699,2]
[361731103,1747735842177,-500.0,0.00013699,2]
[361731104,1747735842187,-500.0,0.00013699,2]
[361731105,1747735842197,-500.0,0.00013699,2]
[361731106,1747735842207,-500.0,0.00013699,2]
[361731107,1747735842217,-500.0,0.00013699,2]
[361731108,1747735842227,-500.0,0.00013699,2]
[361731109,1747735842238,-500.0,0.00013699,2]
[361731110,1747735842248,-931.64,0.000137,2]
[361731111,1747735842257,-931.64,0.000137,2]
[361731112,1747735842267,-501.37,0.0001375,2]
[361731113,1747735842277,-233.63,0.00013788,2]
[361731114,1747735842287,-181.33,0.00013788,2]
[361731115,1747735842299,-837.76,0.00013788,2]
[361731116,1747735842309,-202.0,0.00013899,2]
[361731117,1747735842318,-297.74756271,0.00013934,2]
[361731118,1747735842328,-1000.0,0.00014005,2]
[361731119,1747735842337,-6843.77863831,0.00014011,2]
[361731120,1747735842347,-166.26,0.00014201,2]
[361731121,1747735842358,-587.0,0.00014269,2]
[361731122,1747735842368,-150.71794881,0.00014389,2]
[361731123,1747735842378,-151.0,0.00014506,2]
[361731124,1747735842387,-151.0,0.0001453,2]
[361731125,1747735842397,-151.0,0.0001455,2]
[361731126,1747735842406,-223.0315306,0.00014603,2]
[361731127,1747735842416,-3753.67433142,0.000149,2]
[361731128,1747735842425,-167.01,0.00014954,2]
[361731129,1747735842435,-297.74756271,0.00014969,2]
[361731130,1747735842445,-250.0,0.00015,2]
[361731131,1747735842455,-300.0,0.00015068,2]
[361731132,1747735842464,-1200.273,0.00015271,2]
[361731133,1747735842474,-176.537,0.00015271,2]
[361731134,1747735842483,-154.0,0.00015271,2]
[361731135,1747735842493,-880.0,0.00015271,2]
[361731136,1747735842503,-153.24,0.000153,2]
[361731137,1747735842514,-7461.31,0.0001531,2]
[361731138,1747735842524,-5284.11,0.0001531,2]
[361731139,1747735842533,-299.99,0.0001531,2]
[361731140,1747735842543,-487.79,0.0001531,2]
[361731141,1747735842553,-150.99,0.0001531,2]
[361731142,1747735842563,-70209.82,0.0001531,2]
[361731143,1747735842572,-2343.26762403,0.00015342,2]
[361731144,1747735842582,-1306.0,0.00015397,2]
[361731145,1747735842591,-802.0,0.00015397,2]
[361731146,1747735842601,-775.857,0.00015397,2]
[361731147,1747735842610,-553.0,0.00015397,2]
[361731148,1747735842621,-585.0,0.00015397,2]
[361731149,1747735842631,-920.0,0.00015397,2]
[361731150,1747735842640,-1460.0,0.00015397,2]
[361731151,1747735842650,-3245.17,0.000154,2]
[361731152,1747735842660,-1000.0,0.00015406,2]
[361731153,1747735842669,-501.37,0.00015469,2]
[361731154,1747735842679,-475.17,0.00015557,2]
[361731155,1747735842689,-401.55004938,0.00015562,5]
[361731156,1747735842699,-823.0,0.00015667,2]
[361731157,1747735842708,-611.16,0.00015786,2]
[361731158,1747735842718,-181.33,0.00015856,2]
[361731159,1747735842740,-231.28369723,0.00015972,2]
[361731160,1747735842751,-297.74756271,0.00016003,2]
[361731161,1747735842761,-6843.77863831,0.00016122,2]
[361731162,1747735842771,-192.11,0.00016128,2]
[361731163,1747735842780,-500.0,0.00016438,2]
[361731164,1747735842790,-500.0,0.00016438,2]
[361731165,1747735842800,-616.44683049,0.00016438,2]
[361731166,1747735842809,-500.0,0.00016438,2]
[361731167,1747735842819,-500.0,0.00016438,2]
[361731168,1747735842829,-300.0,0.00016438,2]
[361731169,1747735842839,-166.26,0.00016545,2]
[361731170,1747735842849,-2000.0,0.000167,2]
[361731171,1747735842859,-1000.0,0.00016806,2]
[361731172,1747735842869,-163.86333729,0.00016933,2]
[361731173,1747735842879,-300.0,0.00017,2]
[361731174,1747735842888,-297.74756271,0.00017038,2]
[361731176,1747735842898,-501.37,0.00017188,2]
[361731178,1747735842909,-1152.0,0.00017202,2]
[361731179,1747735842919,-239.84119403,0.00017341,2]
[361731180,1747735842928,-167.01,0.00017422,2]
[361731181,1747735842938,-153.622979,0.00017728,2]
[361731182,1747735842948,-151.0,0.00017728,2]
[361731183,1747735842958,-154.575925,0.00017728,2]
[361731184,1747735842967,-184.522967,0.00017728,2]
[361731185,1747735842977,-475.50582477,0.0001799,2]
[361731186,1747735842987,-611.16,0.0001805,2]
[361731187,1747735843000,-297.74756271,0.00018072,2]
[361731188,1747735843010,-6843.77863831,0.00018233,2]
[361731189,1747735843020,-154.0,0.00018271,2]
[361731190,1747735843030,-880.0,0.00018271,2]
[361731191,1747735843041,-579.112,0.00018397,2]
[361731192,1747735843053,-920.0,0.00018397,2]
[361731193,1747735843063,-1458.0,0.00018397,2]
[361731194,1747735843074,-248.71531821,0.0001871,2]
[361731196,1747735843084,-1613.0,0.00018887,2]
[361731199,1747735843094,-2625.52,0.000189,2]
[361731219,1747735843738,-501.37,0.00018907,2]
[361731221,1747735843749,-327.78641827,0.00019,2]
[361731223,1747735843759,-73923.77744937,0.00019,2]
[361731225,1747735843769,-394.06388786,0.00019,2]
[361731227,1747735843780,-350.0,0.00019,2]
[361731228,1747735843790,-297.74756271,0.00019107,2]
[361731230,1747735843800,-4000.0,0.00019178,2]
[361731233,1747735843810,-13007.99,0.000192,2]
[361731235,1747735843820,-2713.69,0.000192,2]
[361731237,1747735843830,-2000.0,0.000195,2]
[361731239,1747735843840,-151.0,0.0002,2]
[361731241,1747735843849,-3933.92032,0.0002,2]
[361731243,1747735843859,-3933.92032,0.0002,2]
[361731245,1747735843875,-3933.92032,0.0002,2]
[361731246,1747735843885,-3933.92033,0.0002,2]
[361731247,1747735843896,-3933.92033,0.0002,2]
[361731248,1747735843906,-3933.92033,0.0002,2]
[361731249,1747735843916,-257.91778498,0.00020079,2]
[361731250,1747735843927,-297.74756271,0.00020141,2]
[361731251,1747735843937,-809.24,0.00020187,2]
[361731252,1747735843947,-3245.17,0.000202,2]
[361731253,1747735843957,-611.16,0.00020314,2]
[361731254,1747735843967,-6843.77863831,0.00020344,2]
[361731255,1747735843977,-202.0,0.00020485,10]
[361731256,1747735843989,-501.37,0.00020625,2]
[361731257,1747735844001,-2258.0,0.00020737,2]
[361731258,1747735844011,-151.0,0.000209,2]
[361731259,1747735844021,-151.0,0.000209,2]
[361731260,1747735844031,-151.0,0.000209,2]
[361731261,1747735844041,-400.0,0.00021,2]
[361731262,1747735844051,-297.74756271,0.00021176,4]
[361731263,1747735844061,-594.1,0.000212,2]
[361731264,1747735844072,-2625.52,0.000212,2]
[361731265,1747735844082,-151.0,0.000212,2]
[361731266,1747735844092,-151.101483,0.000212,2]
[361731267,1747735844101,-267.46074303,0.00021448,2]
[361731268,1747735844111,-2713.69,0.000218,2]
[361731269,1747735844121,-150.0,0.00021918,2]
[361731270,1747735844133,-393.11,0.00021945,30]
[361731271,1747735844143,-163.86333729,0.00021967,2]
[361731272,1747735844153,-2251.14446267,0.00022,12]
[361731273,1747735844163,-151.0,0.00022,7]
[361731274,1747735844172,-151.0,0.00022,7]
[361731275,1747735844182,-239.8984,0.00022,7]
[361731276,1747735844192,-151.0,0.00022,7]
[361731277,1747735844202,-151.863816,0.000222,7]
[361731278,1747735844212,-151.0,0.000222,7]
[361731279,1747735844222,-2000.0,0.000222,2]
[361731280,1747735844231,-297.74756271,0.0002221,6]
[361731281,1747735844242,-6843.77863831,0.00022456,2]
[361731282,1747735844252,-150.0,0.00022495,2]
[361731283,1747735844262,-611.16,0.00022578,2]
[361731284,1747735844273,-2625.52,0.000227,2]
[361731285,1747735844282,-151.0,0.000227,7]
[361731286,1747735844292,-151.0,0.000227,7]
[361731287,1747735844301,-161.262017,0.000227,7]
[361731288,1747735844312,-161.262017,0.000227,7]
[361731290,1747735844322,-1252.0,0.00022769,2]
[361731292,1747735844331,-277.35679052,0.00022817,2]
[361731294,1747735844341,-450.0,0.00023,2]
[361731296,1747735844351,-150.0,0.00023071,2]
[361731298,1747735844361,-500.0,0.00023123,2]
[361731300,1747735844372,-297.74756271,0.00023245,8]
[361731301,1747735844384,-164.5786469,0.0002326,2]
[361731302,1747735844394,-164.5786469,0.0002326,2]
[361731303,1747735844404,-150.0,0.00023648,2]
[361731304,1747735844414,-829.23,0.00023836,2]
[361731305,1747735844425,-153.24,0.0002389,2]
[361731306,1747735844435,-2713.69,0.000239,7]
[361731307,1747735844445,-500.0,0.000239,2]
[361731308,1747735844455,-500.0,0.000239,2]
[361731309,1747735844466,-500.0,0.000239,2]
[361731310,1747735844476,-500.0,0.000239,2]
[361731311,1747735844486,-500.0,0.000239,2]
[361731312,1747735844496,-500.0,0.000239,2]
[361731313,1747735844505,-500.0,0.000239,2]
[361731314,1747735844516,-500.0,0.000239,2]
[361731315,1747735844526,-500.0,0.000239,2]
[361731316,1747735844535,-500.0,0.000239,2]
[361731317,1747735844545,-500.0,0.000239,2]
[361731318,1747735844555,-500.0,0.000239,2]
[361731319,1747735844565,-500.0,0.000239,2]
[361731320,1747735844587,-500.0,0.000239,2]
[361731321,1747735844598,-500.0,0.000239,2]
[361731322,1747735844608,-500.0,0.000239,2]
[361731323,1747735844618,-500.0,0.000239,2]
[361731324,1747735844628,-500.0,0.000239,2]
[361731325,1747735844639,-500.0,0.000239,2]
[361731326,1747735844650,-500.0,0.000239,2]
[361731327,1747735844660,-500.0,0.000239,2]
[361731328,1747735844671,-500.0,0.000239,2]
[361731329,1747735844681,-500.0,0.000239,2]
[361731330,1747735844691,-500.0,0.000239,2]
[361731331,1747735844701,-500.0,0.000239,2]
[361731332,1747735844712,-500.0,0.000239,2]
[361731333,1747735844722,-500.0,0.000239,2]
[361731334,1747735844732,-500.0,0.000239,2]
[361731335,1747735844743,-500.0,0.000239,2]
[361731336,1747735844753,-500.0,0.000239,2]
[361731337,1747735844763,-500.0,0.000239,2]
[361731338,1747735844773,-500.0,0.000239,2]
[361731339,1747735844783,-500.0,0.000239,2]
[361731340,1747735844793,-500.0,0.000239,2]
[361731341,1747735844803,-500.0,0.000239,2]
[361731342,1747735844814,-500.0,0.000239,2]
[361731343,1747735844824,-500.0,0.000239,2]
[361731344,1747735844833,-500.0,0.000239,2]
[361731345,1747735844843,-500.0,0.000239,2]
[361731346,1747735844854,-500.0,0.000239,2]
[361731347,1747735844864,-500.0,0.000239,2]
[361731348,1747735844874,-500.0,0.000239,2]
[361731349,1747735844885,-500.0,0.000239,2]
[361731350,1747735844895,-500.0,0.000239,2]
[361731351,1747735844905,-500.0,0.000239,2]
[361731352,1747735844915,-500.0,0.000239,2]
[361731353,1747735844926,-500.0,0.000239,2]
[361731354,1747735844936,-500.0,0.000239,2]
[361731355,1747735844946,-500.0,0.000239,2]
[361731356,1747735844956,-500.0,0.000239,2]
[361731357,1747735844967,-500.0,0.000239,2]
[361731358,1747735844978,-500.0,0.000239,2]
[361731359,1747735844990,-500.0,0.000239,2]
[361731360,1747735845002,-500.0,0.000239,2]
[361731361,1747735845012,-500.0,0.000239,2]
[361731362,1747735845023,-500.0,0.000239,2]
[361731363,1747735845035,-500.0,0.000239,2]
[361731364,1747735845047,-500.0,0.000239,2]
[361731365,1747735845057,-500.0,0.000239,2]
[361731366,1747735845067,-500.0,0.000239,2]
[361731367,1747735845077,-500.0,0.000239,2]
[361731368,1747735845087,-500.0,0.000239,2]
[361731369,1747735845097,-500.0,0.000239,2]
[361731370,1747735845108,-500.0,0.000239,2]
[361731371,1747735845118,-511.0,0.000239,2]
[361731372,1747735845130,-500.0,0.000239,2]
[361731373,1747735845140,-758.257116,0.00023916,2]
[361731374,1747735845151,-500.0,0.00024,2]
[361731375,1747735845162,-287.61899177,0.00024186,2]
[361731376,1747735845172,-150.0,0.00024225,2]
[361731377,1747735845182,-297.74756271,0.00024279,10]
[361731378,1747735845192,-13007.99,0.000243,7]
[361731379,1747735845202,-287.51635,0.000243,7]
[361731380,1747735845213,-151.0,0.000243,7]
[361731381,1747735845223,-151.0,0.000243,7]
[361731382,1747735845234,-151.0,0.000243,7]
[361731383,1747735845244,-152.784056,0.000243,7]
[361731384,1747735845254,-151.0,0.000243,7]
[361731385,1747735845265,-153.100323,0.000243,7]
[361731386,1747735845281,-284.98231,0.000243,7]
[361731387,1747735845292,-151.0,0.000243,7]
[361731388,1747735845304,-151.0,0.000243,7]
[361731389,1747735845314,-209.0,0.0002434,2]
[361731390,1747735845325,-2625.52,0.000245,2]
[361731391,1747735845335,-3245.17,0.000245,2]
[361731392,1747735845347,-6843.77863831,0.00024567,2]
[361731393,1747735845359,-1000.0,0.00024658,2]
[361731394,1747735845369,-151.0,0.000248,7]
[361731395,1747735845381,-151.15241,0.000248,7]
[361731396,1747735845391,-151.681185,0.000248,7]
[361731397,1747735845402,-151.0,0.000248,7]
[361731398,1747735845413,-151.0,0.000248,7]
[361731399,1747735845423,-151.0,0.000248,7]
[361731400,1747735845434,-151.0,0.000248,7]
[361731401,1747735845445,-151.0,0.000248,7]
[361731402,1747735845456,-151.0,0.000248,7]
[361731403,1747735845467,-151.0,0.000248,7]
[361731404,1747735845477,-151.0,0.000248,7]
[361731405,1747735845488,-151.0,0.000248,7]
[361731406,1747735845498,-151.0,0.000248,7]
[361731407,1747735845508,-151.0,0.000248,7]
[361731408,1747735845519,-151.0,0.000248,7]
[361731409,1747735845529,-151.0,0.000248,7]
[361731410,1747735845540,-151.0,0.000248,7]
[361731411,1747735845550,-151.0,0.000248,7]
[361731412,1747735845565,-151.0,0.000248,7]
[361731413,1747735845578,-151.434594,0.000248,7]
[361731414,1747735845589,-151.0,0.000248,7]
[361731415,1747735845599,-151.0,0.000248,7]
[361731416,1747735845609,-153.215833,0.000248,7]
[361731417,1747735845619,-155.42255,0.000248,7]
[361731418,1747735845630,-243.475292,0.000248,7]
[361731419,1747735845640,-151.0,0.000248,7]
[361731420,1747735845650,-151.0,0.000248,7]
[361731421,1747735845660,-151.0,0.000248,7]
[361731422,1747735845671,-151.0,0.000248,7]
[361731423,1747735845681,-151.0,0.000248,7]
[361731424,1747735845692,-151.0,0.000248,7]
[361731425,1747735845702,-151.0,0.000248,7]
[361731426,1747735845713,-151.0,0.000248,7]
[361731427,1747735845723,-151.0,0.000248,7]
[361731428,1747735845732,-151.0,0.000248,7]
[361731429,1747735845743,-151.0,0.000248,7]
[361731430,1747735845754,-151.0,0.000248,7]
[361731431,1747735845764,-151.0,0.000248,7]
[361731432,1747735845774,-151.0,0.000248,7]
[361731433,1747735845785,-152.462121,0.000248,7]
[361731434,1747735845795,-151.0,0.000248,7]
[361731435,1747735845805,-151.0,0.000248,7]
[361731436,1747735845816,-151.0,0.000248,7]
[361731437,1747735845826,-151.0,0.000248,7]
[361731438,1747735845836,-151.0,0.000248,7]
[361731439,1747735845847,-151.0,0.000248,7]
[361731440,1747735845857,-151.0,0.000248,7]
[361731441,1747735845868,-151.0,0.000248,7]
[361731442,1747735845879,-151.0,0.000248,7]
[361731443,1747735845890,-161.262017,0.000248,7]
[361731444,1747735845900,-161.262017,0.000248,7]
[361731445,1747735845915,-222185.47911648,0.000248,3]
[361731450,1747735847468,-393195.93687152,0.000248,3]
[361731451,1747735847479,-150.0,0.00024802,2]
[361731452,1747735847489,-611.16,0.00024842,2]
[361731453,1747735847499,-1650.1721002,0.00024883,2]
[361731454,1747735847509,-1229.5903084,0.00024883,2]